Cogmind - Beta 14 @@@ ROGUE MODE // 2025.04.30 @ 22:16:50 Player: Zaros426 Result: Core destroyed Performance ------------- Evolutions (2) 1000 Regions Visited (5) 1000 Robots Destroyed (110) 550 Value Destroyed (2758) 2758 Prototype IDs (38) 760 Alien Tech Used (0) 0 Bonus (1057) 1057 TOTAL SCORE: 7125 Bonus ------- High Alert Combat Kills 742 Follower Combat Kills 32 Aligned with FarCom 300 Friendly Fire -17 Cogmind --------- Core Integrity 0/550 Matter 226/300 Energy 244/290 System Corruption 0% Temperature Critical (540) Movement Treading (477) Ox4 Location -8/Materials Parts ------- > --- POWER (1) -------- Reinforced Deuterium Engine > --- PROPULSION (4) --- Armored Treads Advanced Treads > --- UTILITY (4) ------ Cargo Storage Unit Powered Armor Powered Armor > --- WEAPON (2) ------- Gauss Cannon Gauss Cannon > --- INVENTORY (30) --- Improved Heat Sink High-capacity Storage Unit Compact Battery (200) Structural Scanner Experimental Sensor Array Improved Terrain Scanner Seismic Detector Modified TNC ECM Suite Powered Armor Improved Shield Generator Hacking Suite Dynamic Insulation System PSU Rigger Shock Rifle Heavy EM Shotgun Heavy Particle Gun EM Pulse Cannon Enhanced Autogun Enhanced Autogun Gauss Rifle Improved Datajack Mining Laser Plasma Cutter Explosive Trap Explosive Trap Explosive Trap Peak State ------------ > --- POWER ------------ Reinforced Deuterium Engine > --- PROPULSION ------- Light Treads Armored Treads Advanced Treads Advanced Treads > --- UTILITY ---------- Cargo Storage Unit Hardened Heavy Armor Plating > --- WEAPON ----------- Blade Saw Longsword +1 > --- INVENTORY -------- Advanced Treads Improved Heat Sink High-capacity Storage Unit Compact Battery Structural Scanner Experimental Sensor Array Improved Terrain Scanner Seismic Detector Modified TNC ECM Suite Improved Shield Generator Hacking Suite Dynamic Insulation System PSU Rigger Shock Rifle Heavy EM Shotgun Beam Rifle Heavy Particle Gun EM Pulse Cannon Heavy Assault Rifle Enhanced Autogun Enhanced Autogun Gauss Cannon Grenade Launcher Improved Datajack Mining Laser Plasma Cutter Explosive Trap Explosive Trap Explosive Trap [Rating: 44] Favorites ----------- Power Ion Engine Engine Ion Engine Propulsion Light Treads Treads Light Treads Wheel Armored Wheel Utility Cargo Storage Unit Device Improved Heat Sink Storage Cargo Storage Unit Processor Core Analyzer Protection Core Shielding Weapon Beam Cannon Energy Gun Medium Laser Energy Cannon Beam Cannon Ballistic Gun Enhanced Autogun Ballistic Cannon Gauss Cannon Launcher Grenade Launcher Special Weapon Mining Laser Slashing Weapon Longsword +1 Special Melee Weapon Datajack Build | -11 -10 -10 -10 -9 -8 ------- Run | Yrd Mat Min Exi Min Mat Slots Evolved 4 | . . . . . 4 Power . | . . . . . . Propulsion 2 | . . . . . 2 Utility 2 | . . . . . 2 Weapon . | . . . . . . Parts Attached 94 | 6 14 5 5 4 60 Power 7 | 1 1 . . 1 4 Engine 7 | 1 1 . . 1 4 Core . | . . . . . . Reactor . | . . . . . . Propulsion 22 | 2 2 3 2 . 13 Treads 16 | 2 . 3 . . 11 Leg . | . . . . . . Wheel 6 | . 2 . 2 . 2 Hover . | . . . . . . Flight . | . . . . . . Utility 28 | 1 6 1 1 . 19 Device 5 | . . 1 . . 4 Storage 6 | 1 4 . 1 . . Processor 1 | . . . . . 1 Hackware . | . . . . . . Protection 16 | . 2 . . . 14 Artifact . | . . . . . . Weapon 37 | 2 5 1 2 3 24 Energy Gun 8 | 2 2 1 . . 3 Energy Cannon 3 | . 1 . . . 2 Ballistic Gun 3 | . . . . . 3 Ballistic Cannon 3 | . . . . . 3 Launcher 1 | . . . . 1 . Special Weapon 5 | . 2 . . 1 2 Impact Weapon . | . . . . . . Slashing Weapon 12 | . . . 1 1 10 Piercing Weapon . | . . . . . . Special Melee Weapon 2 | . . . 1 . 1 Unidentified Prototypes 4 | . . . . . 4 Parts Lost 13 | . . . . . 13 Power 1 | . . . . . 1 Propulsion 7 | . . . . . 7 Utility 3 | . . . . . 3 Weapon 2 | . . . . . 2 Highest Loss Streak 4 | . . . . . 4 To Critical Strikes 1 | . . . . . 1 Average Slot Usage (%) 90 | . 98 99 85 84 84 Engine 12 | . 14 14 14 14 8 Treads 20 | . 25 27 8 . 23 Wheel 10 | . 2 . 19 28 11 Storage 12 | . 14 14 14 14 9 Protection 9 | . 12 11 . . 11 Energy Gun 5 | . 13 14 4 . . Energy Cannon 7 | . 12 14 14 4 . Launcher 1 | . . . . 6 . Slashing Weapon 7 | . . . . 14 14 Peak Build Rating 44 | 6 11 12 21 26 44 Average Rating 22 | 5 8 10 12 20 40 On Entrance 11 | . 6 11 12 21 20 Naked Turns . | . . . . . . Heaviest Build 180 | 13 51 52 151 152 180 Greatest Support 84 | 40 40 40 40 24 84 Greatest Overweight (x) 14 | 1 2 2 6 6 14 Average Overweight (x) 2 | . . 1 5 6 2 Largest Inventory Capacity 30 | 8 20 20 30 30 30 Average Capacity 24 | 7 17 20 29 30 30 Most Carried 30 | 5 20 20 26 30 30 Average Carried 23 | 3 15 19 22 29 29 Final Capacity 30 | 8 20 20 30 30 30 Final Carried 30 | 5 20 20 26 30 27 Class Distribution -------------------- 56% | Hauler-Mutant 43% | Mutant Dominant Class ---------------- Mutant | -10/Materials Mutant | -10/Mines Hauler-Mutant | -10/Exiles Hauler-Mutant | -9/Mines Hauler-Mutant | -8/Materials Resources | -11 -10 -10 -10 -9 -8 ----------- Run | Yrd Mat Min Exi Min Mat Matter Collected 1600 | 260 130 60 . 140 1010 Remotely . | . . . . . . Salvage Created 4153 | 275 596 224 . 46 3012 Parts 248 | 20 46 9 . . 173 Haulers Intercepted 6 | . 2 . . . 4 Recyclers Shooed 1 | . 1 . . . . Parts Field Recycled . | . . . . . . Retrieved Matter . | . . . . . . Parts Self-Destructed . | . . . . . . Prevented . | . . . . . . Kills | -11 -10 -10 -10 -9 -8 ------- Run | Yrd Mat Min Exi Min Mat Combat Hostiles Destroyed 73 | . 8 2 . 7 56 Melee 42 | . . . . 3 39 Guns 9 | . 4 . . . 5 Cannons 17 | . 4 2 . 1 10 AOE 5 | . . . . 3 2 Classes Destroyed 19 | 3 4 1 . 1 10 Worker 13 | 1 3 2 . . 7 Builder 9 | . . 1 . . 8 Tunneler 9 | 8 1 . . . . Hauler 6 | . 2 . . . 4 Recycler 3 | 1 1 1 . . . Mechanic 2 | . . . . . 2 Operator 3 | . . . . . 3 Watcher 4 | . 3 . . . 1 Swarmer 8 | . 2 1 . . 5 Cutter 3 | . . . . . 3 Grunt 33 | . 6 1 . . 26 Brawler 4 | . . . . . 4 Duelist 5 | . . . . . 5 Protector 1 | . . . . . 1 Sentry 8 | . . . . . 8 Specialist 2 | . . . . . 2 Hunter 1 | . . . . . 1 Heavy 1 | . . . . . 1 Assembled 7 | . . . . 7 . Best Kill Streak 8 | 3 4 2 . 4 8 Combat Bots Only 8 | . 3 1 . 4 8 Max Kills in Single Turn 3 | 1 1 1 . 1 3 Gunslinging . | . . . . . . Exploded 1 | . . . . 1 1 Melee 1 | . . . . 1 1 Uniques/NPCs Destroyed . | . . . . . . Combat | -11 -10 -10 -10 -9 -8 -------- Run | Yrd Mat Min Exi Min Mat Hostile Shots Fired 440 | . 37 18 . 10 375 Missed 101 | . 9 7 . 2 83 Damage Taken 5979 | . 325 107 . 154 5393 Core 676 | . 34 14 . 56 572 Absorbed by Shields 12 | . . . . . 12 Redirected to Shielding 11 | . 8 3 . . . Regen/Repaired (Parts) 145 | . . . . . 145 Core Remaining (%) 79 | 100 . . . 58 . Volleys Fired 155 | 18 40 12 . 18 67 Largest 2 | 2 2 2 . 1 2 Hottest 125 | 90 110 125 . 100 113 Shots Fired 269 | 36 75 22 . 18 118 Gun 144 | 36 40 10 . . 58 Cannon 108 | . 30 12 . 11 55 Launcher 5 | . . . . 5 . Special 12 | . 5 . . 2 5 Kinetic 104 | . . . . . 104 Thermal 151 | 36 75 22 . 13 5 Explosive 5 | . . . . 5 . Electromagnetic 9 | . . . . . 9 Robot Hit Streak 10 | 10 10 6 . 3 10 Robot Miss Streak 4 | 3 4 3 . 4 3 Penetration Max . | . . . . . . Secondary Targets 1 | . . . . . 1 Max Gunslinging Chain 1 | . . . . . 1 Shots Hit Robots 281 | 23 43 12 3 10 190 Core Hits 139 | 11 25 8 . 9 86 Critical Kills 1 | . 1 . . . . Critical Parts Destroyed . | . . . . . . Critical Strikes 24 | 2 2 . . . 20 Burn 3 | 2 1 . . . . Meltdown 1 | . 1 . . . . Blast 7 | . . . . . 7 Corrupt 1 | . . . . . 1 Sever 12 | . . . . . 12 Melee Attacks 158 | . . . 3 5 150 Impact . | . . . . . . Slashing 155 | . . . . 5 150 Piercing . | . . . . . . Sneak Attacks 25 | . . . 3 . 22 Combat Hostiles 1 | . . . . . 1 Follow-up Attacks 7 | . . . . . 7 Damage Inflicted 10174 | 306 652 182 . 453 8581 Guns 1379 | 306 371 95 . . 607 Cannons 1441 | . 281 87 . 139 934 Explosions 932 | . . . . 154 778 Melee 6422 | . . . . 160 6262 Ramming . | . . . . . . Kinetic 1438 | . . . . . 1438 Thermal 1441 | 306 652 182 . 139 162 Explosive 770 | . . . . 154 616 Electromagnetic 103 | . . . . . 103 Impact . | . . . . . . Slashing 6422 | . . . . 160 6262 Piercing . | . . . . . . Highest Corruption . | . . . . . . Average Corruption . | . . . . . . Corruption Purged . | . . . . . . Corruption Blocked . | . . . . . . Overload Shots . | . . . . . . Overflow Damage 922 | . . . . 3 919 Projectiles 23 | . . . . . 23 Explosions 73 | . . . . 3 70 Melee 826 | . . . . . 826 Knockbacks 6 | . . . . . 6 Impact . | . . . . . . Kinetic 6 | . . . . . 6 Secondary . | . . . . . . Self-Inflicted Damage 140 | . . . . . 140 Shots 2 | . . . . . 2 Rammed . | . . . . . . Targets Rammed . | . . . . . . Kicked . | . . . . . . Crushed . | . . . . . . Highest Temperature 540 | 180 278 138 . 104 540 Average Temperature 101 | 52 82 49 . 36 155 Received Heat Transfer 2088 | . 168 48 . . 1872 Effects 7 | . 1 . . . 6 Shutdowns 1 | . . . . . 1 Energy Bleed 2 | . 1 . . . 1 Damage (minor) 2 | . . . . . 2 Damage (core) 2 | . . . . . 2 Siege Activations . | . . . . . . Robots Corrupted . | . . . . . . Combat Hostiles . | . . . . . . Parts Fried . | . . . . . . Impact Corruptions . | . . . . . . Robots Melted 1 | . 1 . . . . Combat Hostiles . | . . . . . . Parts Melted 8 | 3 4 1 . . . Heat Transferred 3584 | 966 1728 444 . 296 150 Parts Sabotaged . | . . . . . . Parts Stolen . | . . . . . . Parts Stripped . | . . . . . . Power Chain Reactions 1 | . . . . . 1 Alert | -11 -10 -10 -10 -9 -8 ------- Run | Yrd Mat Min Exi Min Mat Peak Influence 1284 | 50 167 136 . 26 1284 Initial 32 | . 32 3 . . . Average 243 | 21 51 23 . 7 604 Maximum Alert Level 4 | . . . . . 4 Low Security (%) 73 | 100 100 100 . 100 28 Level 1 1 | . . . . . 3 Level 2 3 | . . . . . 10 Level 3 17 | . . . . . 46 Level 4 4 | . . . . . 11 Level 5 . | . . . . . . High Security . | . . . . . . Max Security . | . . . . . . Sterilizations 1 | . . . . . 1 Squads Dispatched 15 | . 2 . . 1 12 Investigation 3 | . 2 . . 1 . Extermination . | . . . . . . Reinforcement 10 | . . . . . 10 Assault 2 | . . . . . 2 Garrison . | . . . . . . Intercept . | . . . . . . Searches Triggered . | . . . . . . Construction Impeded 3 | . . . . . 3 Haulers Reinforced . | . . . . . . Active Scanning Responses . | . . . . . . Cargo Convoy Interrupts . | . . . . . . Stealth | -11 -10 -10 -10 -9 -8 --------- Run | Yrd Mat Min Exi Min Mat Distress Signals 12 | . . . . 1 11 Communications Jammed . | . . . . . . Distress Signals . | . . . . . . Times Spotted 127 | . 17 6 . 8 96 Peak Tracking Total 10 | . 3 3 . 3 10 Tactical Retreats 12 | . 1 . . . 11 Traps | -11 -10 -10 -10 -9 -8 ------- Run | Yrd Mat Min Exi Min Mat Traps Triggered . | . . . . . . Indirectly . | . . . . . . Trap Hack Attempts . | . . . . . . Triggered . | . . . . . . Disarmed . | . . . . . . Reprogrammed . | . . . . . . Reused . | . . . . . . Traps Extracted . | . . . . . . Installed . | . . . . . . Triggered . | . . . . . . Most Traps Carried 3 | . . 3 3 3 3 Machines | -11 -10 -10 -10 -9 -8 ---------- Run | Yrd Mat Min Exi Min Mat Machines Disabled 3 | . 1 . . . 2 Max in Single Turn 1 | . 1 . . . 1 Machines Repaired . | . . . . . . Machines Dismantled . | . . . . . . Machines Sabotaged . | . . . . . . Overloaded Fab Kills . | . . . . . . Hacking | -11 -10 -10 -10 -9 -8 --------- Run | Yrd Mat Min Exi Min Mat Machines Accessed 20 | . 10 . 2 1 7 Terminals 12 | . 8 . . . 4 Fabricators . | . . . . . . Repair Stations 1 | . . . . . 1 Recycling Units 2 | . 2 . . . . Scanalyzers 2 | . . . . . 2 Garrison Access . | . . . . . . Total Hacks 52 | . 27 . 2 1 22 Successful 26 | . 12 . 2 1 11 Failed 25 | . 15 . . . 10 Catastrophic 3 | . 2 . . . 1 Database Lockouts 1 | . . . . . 1 Manual 35 | . 22 . 1 . 12 Terminals 38 | . 25 . . . 13 Fabricators . | . . . . . . Repair Stations 5 | . . . . . 5 Recycling Units 2 | . 2 . . . . Scanalyzers 4 | . . . . . 4 Garrison Access . | . . . . . . Terminal Hacks 8 | . 3 . 2 1 2 Record 1 | . . . 1 . . Robot Analysis 4 | . 3 . . . 1 Open Door 1 | . . . . 1 . Patrol Status 1 | . . . . . 1 Derelict Proto ID Bank 1 | . . . 1 . . Fabricator Hacks . | . . . . . . Repair Station Hacks 3 | . . . . . 3 Scan Component 2 | . . . . . 2 Repair 1 | . . . . . 1 Recycling Unit Hacks . | . . . . . . Scanalyzer 3 | . . . . . 3 Insert Component 2 | . . . . . 2 Analyze 1 | . . . . . 1 Garrison Access Hacks . | . . . . . . Unauthorized Hacks 12 | . 9 . . . 3 Terminals 10 | . 7 . . . 3 Botnet 3 | . 2 . . . 1 Skim 7 | . 5 . . . 2 Fabricators . | . . . . . . Repair Stations . | . . . . . . Recycling Units 2 | . 2 . . . . Tunnel 2 | . 2 . . . . Scanalyzers . | . . . . . . Garrison Access . | . . . . . . Data Cores Recovered . | . . . . . . Used . | . . . . . . Hacking Detections 15 | . 8 . . . 7 Full Trace Events 2 | . . . . . 2 Feedback Events . | . . . . . . Feedback Blocked . | . . . . . . Robot Schematics Acquired . | . . . . . . Robots Built . | . . . . . . Authchips . | . . . . . . Time . | . . . . . . Total Robot Build Rating . | . . . . . . Part Schematics Acquired . | . . . . . . Parts Built . | . . . . . . Authchips . | . . . . . . Time . | . . . . . . Total Part Build Rating . | . . . . . . Parts Repaired 1 | . . . . . 1 Time 38 | . . . . . 38 Parts Recycled . | . . . . . . Recycled Matter . | . . . . . . Retrieved Matter . | . . . . . . Retrieved Components . | . . . . . . Parts Scanalyzed 1 | . . . . . 1 Part Schematics Acquired . | . . . . . . Parts Damaged . | . . . . . . Bothacking | -11 -10 -10 -10 -9 -8 ------------ Run | Yrd Mat Min Exi Min Mat Used RIF Installer . | . . . . . . Robots Hacked 3 | . . . 3 . . Non-combat 2 | . . . 2 . . Combat 1 | . . . 1 . . Robot Hacks Applied 3 | . . . 3 . . parse_system 3 | . . . 3 . . Relay Couplers Released . | . . . . . . Fabnet Peak Effective % . | . . . . . . Robots Rewired . | . . . . . . Allies Hacked . | . . . . . . Hacks Repelled . | . . . . . . Allies | -11 -10 -10 -10 -9 -8 -------- Run | Yrd Mat Min Exi Min Mat Total Allies 5 | . . 5 . . . Largest Group 5 | . . 5 5 3 1 Highest-Rated Group 94 | . . 94 94 40 16 Highest-Rated Ally 31 | . . 31 31 16 16 Total Orders . | . . . . . . Ally Attacks 48 | . . 7 . 41 . Total Damage 402 | . . 97 . 305 . Kills 3 | . . 2 . 1 . Allies Corrupted . | . . . . . . Allies Melted . | . . . . . . Intel | -11 -10 -10 -10 -9 -8 ------- Run | Yrd Mat Min Exi Min Mat Robot Analysis Total 4 | . 3 . . . 1 Derelict Logs Recovered 3 | . . 1 . 2 . Drone Launches . | . . . . . . Drone Recoveries . | . . . . . . Exploration | -11 -10 -10 -10 -9 -8 ------------- Run | Yrd Mat Min Exi Min Mat Turns Passed 9561 | 290 2013 1817 541 1538 3362 Spaces Moved 3988 | 135 954 727 241 778 1153 Core 2 | 2 . . . . . Treads 2217 | 133 799 723 42 . 520 Legs . | . . . . . . Wheels 1769 | . 155 4 199 778 633 Hover . | . . . . . . Flight . | . . . . . . Fastest Speed 50 | 50 120 120 180 180 135 Average Speed 203 | 158 183 239 209 180 216 Slowest Speed 480 | 160 240 240 400 180 480 Overloaded Moves . | . . . . . . Propulsion Burnouts . | . . . . . . Robots Hopped . | . . . . . . Cave-ins Triggered . | . . . . . . Exploration Rate (%) 75 | 7 98 99 61 99 86 Regions Visited 5 Branch Regions 3 Pre-discovered Areas 4 | . 2 . 1 1 . Known Exits Taken . | . . . . . . Unknown Exits Taken 5 | 1 1 1 1 1 . Scrap Searched 3 | . . 1 . 2 . Spaces Dug 31 | . 5 . . 13 13 Terrain Destroyed 126 | . 5 . . 40 81 Melee 8 | . . . . 2 6 Projectile 33 | . 5 . . 2 26 AOE 85 | . . . . 36 49 Terrain Rammed . | . . . . . . Walls Destroyed . | . . . . . . Machines Disabled . | . . . . . . Actions | -11 -10 -10 -10 -9 -8 --------- Run | Yrd Mat Min Exi Min Mat Total 5013 | 172 1132 784 276 891 1758 Wait 490 | 7 92 27 3 76 285 Move 3983 | 134 953 726 240 777 1153 Hop . | . . . . . . Pick Up 88 | 6 22 7 23 6 24 Fast Attach 30 | 6 2 . . 1 21 Attach 15 | . 1 1 1 . 12 Detach 3 | . 1 . . 1 1 Swap 49 | . 11 4 4 3 27 Drop 54 | 1 10 7 2 4 30 Fire 155 | 18 40 12 . 18 67 Melee 146 | . . . 3 5 138 Ram . | . . . . . . Kick . | . . . . . . Crush . | . . . . . . Escape Stasis . | . . . . . . Rewire . | . . . . . . Trap . | . . . . . . Miscellaneous . | . . . . . . Route ------- -11/Scrapyard -10/Materials (discovered 5 exits: *Mat x3 / [*Min] / [*Sub]) -10/Mines (discovered 4 exits: *Mat x2 / *Exi / [*Sub]) -10/Exiles -9/Mines (discovered 2 exits: *Mat x2) -8/Materials (discovered 3 exits: *Fac x3) History --------- Turn | Location | Event 23 | -11/Scrapyard | Discovered new exit (range 16) 291 | -11/Scrapyard | Entered Materials 322 | -10/Materials | Build established: Mutant 898 | -10/Materials | Discovered new exit (range 6) 1108 | -10/Materials | Discovered new exit (range 6) 1394 | -10/Materials | Discovered new exit (range 16) 1913 | -10/Materials | Learned 2 Storage zone layouts 1923 | -10/Materials | Discovered new exit (range 6) 1960 | -10/Materials | Learned location of 2 exits from Subcaves 1999 | -10/Materials | Learned location of 1 exit from Storage 2028 | -10/Materials | Learned 4 Subcaves zone layouts 2047 | -10/Materials | Identified exit to Materials 2057 | -10/Materials | Learned Storage terminal intel 2079 | -10/Materials | Learned Storage terminal intel 2112 | -10/Materials | Learned Storage trap positions 2304 | -10/Materials | Entered Mines 2313 | -10/Mines | Met a Derelict bent on vengeance 2394 | -10/Mines | Deemed a non-threat by the Exiles lab entrance 2394 | -10/Mines | Discovered new exit (range 5) 2514 | -10/Mines | Learned location of 1 exit from Materials 2651 | -10/Mines | Assisted by bots powering up and referring to "LRC-V3" 3077 | -10/Mines | Found a hidden stash of uninstalled traps 3150 | -10/Mines | Discovered new exit (range 11) 3771 | -10/Mines | Joined a pair of Derelicts in attacking an 0b10 outpost 4121 | -10/Mines | Entered Exiles 4121 | -10/Exiles | Accompanied by 5 allies 4151 | -10/Exiles | Led the pair of lost Derelicts to a safe place 4289 | -10/Exiles | Met 8R-AWN 4324 | -10/Exiles | Met EX-HEX 4379 | -10/Exiles | Met EX-BIN 4401 | -10/Exiles | Aligned with FarCom system 4402 | -10/Exiles | Given EX-Vault access code 4446 | -10/Exiles | Opened EX-Vault 4453 | -10/Exiles | Found Modified TNC 4457 | -10/Exiles | Found Longsword +1 4465 | -10/Exiles | Build established: Hauler-Mutant 4466 | -10/Exiles | Found PSU Rigger 4501 | -10/Exiles | Warned to stay clear of 0b10 Research branches 4522 | -10/Exiles | Exiles lab attacked by MAIN.C 4585 | -10/Exiles | Learned location of Zion (-7) 4643 | -10/Exiles | Discovered new exit (range 10) 4662 | -10/Exiles | Stole three prototypes: Modified TNC, PSU Rigger, Longsword +1 4662 | -10/Exiles | Entered Mines 4662 | -9/Mines | Accompanied by 3 allies 4865 | -9/Mines | Found a damaged Exp. Sensor Array with a note attached 4868 | -9/Mines | Found Prototype Device 4937 | -9/Mines | Learned location of Storage (-7) 4987 | -9/Mines | Assembled infested the area 4992 | -9/Mines | Assisted by a Guerilla fighting off Assembled 5122 | -9/Mines | Lost 3 allies 5134 | -9/Mines | Met a Derelict shopkeep closing up shop 5612 | -9/Mines | Discovered new exit (range 9) 5735 | -9/Mines | Discovered new exit (range 12) 6200 | -9/Mines | Entered Materials 6200 | -8/Materials | Accompanied by 1 ally 6200 | -8/Materials | Evolved 4 slots: Propulsion x2, Utility x2 6201 | -8/Materials | Identified exit to Factory 6397 | -8/Materials | Identified Exp. Sensor Array 6675 | -8/Materials | Discovered exit to Factory (range 16) 7169 | -8/Materials | Central database locked down 7178 | -8/Materials | Destroyed 8 combat bots 7316 | -8/Materials | Lost 4 parts (3n1u) 7324 | -8/Materials | Destroyed 7 combat bots 7603 | -8/Materials | Discovered exit to Factory (range 5) 7616 | -8/Materials | Core integrity fell below 50% 7667 | -8/Materials | Lost 3 parts (1n1u1w) 8172 | -8/Materials | Repaired Adv. Treads 8216 | -8/Materials | Found Powered Armor 8221 | -8/Materials | Found Powered Armor 8237 | -8/Materials | Found Powered Armor 8242 | -8/Materials | Found Powered Armor 9000 | -8/Materials | First assault squad dispatched 9557 | -8/Materials | Sterilization system engaged 9557 | -8/Materials | Non-combat units ordered to evacuate 9562 | -8/Materials | Core integrity fell below 20% 9563 | -8/Materials | Core destroyed Last Messages --------------- 09549_ Nuclear Reactor explodes. 09549_ Destroyed Lgt. Ion Engine. 09549_ Destroyed Wheel. 09549_ U-05 Engineer destroyed. 09549_ ALERT: Construction progress impeded, dispatching reinforcements to local area. 09551_ U-05 Engineer builds a Wall. 09552_ Adv. Treads destroyed. 09555_ G-50 Soldier knocked back. 09555_ U-05 Engineer builds a Wall. 09557_ Power failure, Rnf. Deuterium Engine shutdown. 09557_ Overheating: Powered Armor damaged (-16). 09557_ ALERT: Persistent threat exposed, engaging Materials sterilization system. 09557_ ALERT: All non-combat units evacuate. 09558_ Slug penetrates Earth. 09559_ Overheating: Gauss Cannon damaged (-62). 09561_ Overheating: Energy bleed (-40). 09561_ B-36 Bruiser Lgt. Treads blasted off. 09561_ B-36 Bruiser destroyed. 09562_ Overheating: Core damaged (-66). 09563_ Overheating: Core damaged (-71). Map ----- +----------------------------------------------------+ | #???# """ """ #? | | #???# """ """ #? | | #######???# """ """ #? | | ??????????#[= #? | | ??????????#%!! #? | | ###########!%! #? | | =[%[[=%!!|=!!! #? | | ################ =% #? | | # #?????# !% #? | | # T #?????############ ##? | | #[ #????????????????# #?? | | #!* #????????######### #?? | | +%[ #???????? # #?? | | #=="""" #???????# """ # #?? | | #= """" #???????# """ # #?? | | # """" #???????# """ # #?? | | # ?????????# + #?? | | #### ###?????????# """ # #?? | | #???##???????????# """ # #?? | | #????????????????# """ # #?? | | #????????????????? # #?? | | #????????????????###+###### #?? | | #????????????????# # #?? | | #????????????????# # #?? | | ?????????????????# [[ *!%#! #?? | | ?????????????# ; [! !=@#%= #?? | | ????????????????# %*=[ ** #?? | | ????????????????# ! % u #?? | | ????????????????# = #?? | | ????????????????# g u #?? | | ????????????????# % #?? | | ????????????????## #?? | | ?????????????????# #?? | | ????????????????# ### ### #?? | | ????????????????##??####??# #?? | | ?????##???????????????????# #?? | | ?????# ###????????????????# #?? | | ??????#""#########????????# #?? | | ???????# #???????## ##? | | ???????# ######### #? | | ???????# # ## #? | | ???????# #""" [## T #? | | ???????# #""" ## [ #? | | ???????# #""" ##===%*#? | | ???????# # ?###!###? | | ???????# # ?????#!#??? | | ????########+######+########%#??? | | ????# *==*#??? | | ????# #############??? | | ????# """ ! #??????????????? | +----------------------------------------------------+ Best States ------------- Heat Dissipation 45 Energy Generation 16 Energy Capacity 290 Matter Stores 300 Matter Capacity 300 Sight Range 16 Terrain Scan Density 10 Armor Coverage 800 Core Shielding 20 Weapon Shielding 66 Evasion (%) 40 Core Analysis 6 Recoil Reduction 4 Item Schematics ----------------- None Robot Schematics ------------------ None Fabricated ------------ Nothing Alien Tech Used ----------------- None Achievements -------------- None Challenges ------------ None Game ------ Seed MakeshiftNetworkObliterator Manual? 0 Play Time 00:53:34 Cumulative 218.0 hours Start 2025.04.30 @ 21:24:19 End 2025.04.30 @ 22:16:50 Sessions 1 Manual Loads 0 Difficulty Rogue Special Mode None Game No. 109 Rogue 109 Adventurer 0 Explorer 0 Win Type - Total 0 Types 0/0/0/0/0/0/0/0/0 Lore% 56 Gallery% 73 Achievement% 60 Wizard Run 0 Options --------- Layout 0 ASCII 0 Keyboard 0 Movement Mouse Keybinds 0 Fullscreen 1 Font 24/Smallcaps Map View 183x50 Zoom Use 0% Tactical HUD 1 Map Filters NONE Filters NONE Steam 0 RUN: 984e2aee-964c-48b4-a02d-06e042622ee5